Cogmind - Beta 15 @@@ ROGUE MODE // 2025.05.20 @ 22:04:05 Player: EH-D33 Result: Destroyed by as-26108 with Assembled Blade Performance ------------- Evolutions (0) 0 Regions Visited (4) 800 Robots Destroyed (22) 110 Value Destroyed (557) 557 Prototype IDs (25) 500 Alien Tech Used (0) 0 Bonus (248) 248 TOTAL SCORE: 2215 Bonus ------- Aligned with FarCom 300 Friendly Fire -52 Cogmind --------- Core Integrity 0/250 Matter 241/300 Energy 66/100 System Corruption 0% Temperature Cool (0) Movement Walking (120) Location -9/Mines Parts ------- > --- POWER (1) -------- (None) > --- PROPULSION (2) --- Aluminum Leg Potential Leg > --- UTILITY (2) ------ Medium Storage Unit > --- WEAPON (2) ------- (None) > --- INVENTORY (10) --- Aluminum Leg Improved Heat Sink Signal Interpreter Assault Rifle Assault Rifle Heavy Assault Rifle Bore Cannon Peak State ------------ > --- POWER ------------ Light Ion Engine > --- PROPULSION ------- Potential Leg Improved Hover Unit > --- UTILITY ---------- Medium Storage Unit > --- WEAPON ----------- (None) > --- INVENTORY -------- Aluminum Leg Aluminum Leg Improved Heat Sink Signal Interpreter Assault Rifle Assault Rifle Heavy Assault Rifle Bore Cannon [Rating: 15] Favorites ----------- Power Light Ion Engine Engine Light Ion Engine Propulsion Light Treads Treads Light Treads Leg Aluminum Leg Hover Unit Improved Hover Unit Utility Hardened Light Armor Plating Storage Large Storage Unit Protection Hardened Light Armor Plating Weapon Heavy Assault Rifle Ballistic Gun Heavy Assault Rifle Launcher Grenade Launcher Build | -11 -10 -10 -10 -9 ------- Run | Yrd Mat Min Exi Min Slots Evolved . | . . . . . Power . | . . . . . Propulsion . | . . . . . Utility . | . . . . . Weapon . | . . . . . Parts Attached 20 | 6 9 . . 5 Power 4 | 1 2 . . 1 Engine 4 | 1 2 . . 1 Core . | . . . . . Reactor . | . . . . . Propulsion 7 | 2 2 . . 3 Treads 3 | 2 1 . . . Leg 2 | . 1 . . 1 Wheel . | . . . . . Hover 2 | . . . . 2 Flight . | . . . . . Utility 4 | 1 3 . . . Device . | . . . . . Storage 3 | 1 2 . . . Processor . | . . . . . Hackware . | . . . . . Protection 1 | . 1 . . . Artifact . | . . . . . Weapon 5 | 2 2 . . 1 Energy Gun . | . . . . . Energy Cannon . | . . . . . Ballistic Gun 4 | 2 2 . . . Ballistic Cannon . | . . . . . Launcher 1 | . . . . 1 Special Weapon . | . . . . . Impact Weapon . | . . . . . Slashing Weapon . | . . . . . Piercing Weapon . | . . . . . Special Melee Weapon . | . . . . . Unidentified Prototypes . | . . . . . Parts Lost 10 | . 2 1 . 7 Power 3 | . 1 . . 2 Propulsion 3 | . 1 . . 2 Utility 1 | . . . . 1 Weapon 3 | . . 1 . 2 Highest Loss Streak 7 | . 1 1 . 7 To Critical Strikes . | . . . . . Average Backups 10 | 1 8 12 14 13 Power 1 | . 2 1 1 . Propulsion 3 | . 2 4 5 5 Utility 2 | . 1 3 4 3 Weapon 2 | . 1 2 4 4 Tool/Special . | . . . . . Unused Backups 9 | . 2 . . 7 Power . | . . . . . Propulsion 4 | . 2 . . 2 Utility 3 | . . . . 3 Weapon 2 | . . . . 2 Tool/Special . | . . . . . Average Slot Usage (%) 96 | . 94 100 100 83 Engine 13 | . 13 14 14 11 Treads 27 | . 26 28 28 23 Storage 14 | . 14 14 14 14 Protection 11 | . 9 14 14 9 Ballistic Gun 27 | . 28 28 28 16 Peak Build Rating 15 | 6 11 11 12 15 Average Rating 9 | 4 9 10 11 11 On Entrance 8 | . 6 11 11 12 Naked Turns . | . . . . . Heaviest Build 36 | 12 36 34 33 34 Greatest Support 40 | 40 40 40 40 40 Greatest Overweight (x) 1 | . 1 . . . Average Overweight (x) . | . . . . . Largest Inventory Capacity 15 | 8 15 15 15 15 Average Capacity 13 | 6 12 15 15 14 Most Carried 15 | 3 12 14 15 15 Average Carried 10 | 1 8 12 14 13 Final Capacity 15 | 8 15 15 15 10 Final Carried 15 | 3 12 14 15 7 Class Distribution -------------------- 100% | Mutant Dominant Class ---------------- Mutant | -10/Materials Mutant | -10/Mines Mutant | -10/Exiles Mutant | -9/Mines Resources | -11 -10 -10 -10 -9 ----------- Run | Yrd Mat Min Exi Min Matter Collected 772 | 247 464 61 . . Remotely . | . . . . . Salvage Created 719 | . 617 98 . 4 Parts 43 | . 36 5 . 2 Haulers Intercepted 1 | . 1 . . . Recyclers Shooed . | . . . . . Parts Field Recycled . | . . . . . Retrieved Matter . | . . . . . Parts Self-Destructed . | . . . . . Prevented . | . . . . . Kills | -11 -10 -10 -10 -9 ------- Run | Yrd Mat Min Exi Min Combat Hostiles Destroyed 20 | . 16 2 . 2 Guns 18 | . 16 2 . . AOE 2 | . . . . 2 Classes Destroyed 7 | . 5 . . 2 Worker 1 | . 1 . . . Hauler 1 | . 1 . . . Mechanic 1 | . 1 . . . Swarmer 5 | . 5 . . . Grunt 13 | . 11 2 . . Zionite 1 | . . . . 1 Assembled 2 | . . . . 2 Best Kill Streak 4 | . 4 2 . 2 Combat Bots Only 3 | . 3 2 . 2 Max Kills in Single Turn 2 | . 2 1 . 2 Gunslinging 1 | . 1 . . . Exploded 2 | . . . . 2 Melee . | . . . . . Uniques/NPCs Destroyed . | . . . . . Combat | -11 -10 -10 -10 -9 -------- Run | Yrd Mat Min Exi Min Hostile Shots Fired 160 | . 95 13 . 52 Missed 42 | . 23 5 . 14 Hits 118 | . 72 8 . 38 Melee 7 | . . . . 7 Projectile 111 | . 72 8 . 31 Critical Strikes 5 | . 3 1 . 1 Part Disruptions 2 | . . . . 2 Damage Taken 1536 | . 787 112 . 637 Core 256 | . 100 17 . 139 Absorbed by Shields . | . . . . . Regen/Repaired (Parts) 43 | . 43 . . . Core Remaining (%) 100 | 100 . . . . Volleys Fired 69 | . 61 6 . 2 Largest 2 | . 2 2 . 2 Hottest 53 | . 46 46 . 53 Shots Fired 138 | . 122 12 . 4 Gun 136 | . 122 12 . 2 Cannon . | . . . . . Launcher 2 | . . . . 2 Special . | . . . . . Kinetic 136 | . 122 12 . 2 Thermal . | . . . . . Explosive 2 | . . . . 2 Electromagnetic . | . . . . . Robot Hit Streak 12 | . 12 10 . 1 Robot Miss Streak 4 | . 4 2 . 3 Penetration Max . | . . . . . Secondary Targets 2 | . 2 . . . Max Gunslinging Chain 1 | . 1 . . . Shots Hit Robots 93 | . 82 10 . 1 Core Hits 38 | . 27 4 . 7 Critical Kills 2 | . 2 . . . Critical Parts Destroyed 1 | . 1 . . . Critical Strikes 3 | . 3 . . . Destroy 3 | . 3 . . . Melee Attacks . | . . . . . Impact . | . . . . . Slashing . | . . . . . Piercing . | . . . . . Sneak Attacks . | . . . . . Combat Hostiles . | . . . . . Follow-up Attacks . | . . . . . Damage Inflicted 1497 | . 1171 147 . 179 Guns 1316 | . 1169 147 . . Cannons . | . . . . . Explosions 178 | . . . . 178 Melee . | . . . . . Ramming 3 | . 2 . . 1 Kinetic 1316 | . 1169 147 . . Thermal . | . . . . . Explosive 178 | . . . . 178 Electromagnetic . | . . . . . Impact . | . . . . . Slashing . | . . . . . Piercing . | . . . . . Highest Corruption . | . . . . . Average Corruption . | . . . . . Corruption Purged . | . . . . . Corruption Blocked . | . . . . . Overload Shots . | . . . . . Overflow Damage . | . . . . . Projectiles . | . . . . . Explosions . | . . . . . Melee . | . . . . . Knockbacks . | . . . . . Impact . | . . . . . Kinetic . | . . . . . Secondary . | . . . . . Self-Inflicted Damage 56 | . . . . 56 Shots 2 | . . . . 2 Rammed 2 | . 1 . . 1 Targets Rammed 2 | . 1 . . 1 Kicked . | . . . . . Crushed . | . . . . . Highest Temperature 138 | . 138 52 . 25 Average Temperature 56 | . 62 38 . 9 Received Heat Transfer 627 | . 366 81 . 180 Siege Activations . | . . . . . Martial Activations . | . . . . . Shielding Activations . | . . . . . Robots Disrupted . | . . . . . Combat Hostiles . | . . . . . Robots Corrupted . | . . . . . Combat Hostiles . | . . . . . Parts Fried . | . . . . . Impact Corruptions . | . . . . . Robots Melted . | . . . . . Combat Hostiles . | . . . . . Parts Melted . | . . . . . Heat Transferred . | . . . . . Parts Sabotaged . | . . . . . Parts Stolen . | . . . . . Parts Stripped . | . . . . . Power Chain Reactions . | . . . . . Alert | -11 -10 -10 -10 -9 ------- Run | Yrd Mat Min Exi Min Maximum Alert Level 1 | . 1 . . . Low Security (%) 98 | 100 96 100 . 100 Level 1 1 | . 3 . . . Level 2 . | . . . . . Level 3 . | . . . . . Level 4 . | . . . . . Level 5 . | . . . . . High Security . | . . . . . Max Security . | . . . . . Peak Influence 226 | . 226 116 . 8 Initial 86 | . . 86 . . Average 34 | . 44 19 . 1 Influence Increases 611 | . 545 50 . 16 Destroy 0b10 Robot/C 360 | . 320 40 . . Destroy 0b10 Robot/NC 15 | . 15 . . . Destroy Leader 82 | . 72 10 . . Successful Hack 14 | . 14 . . . Disable Machine 15 | . 15 . . . Destroy Structure 20 | . 4 . . 16 Lose Combat Pursuer 105 | . 105 . . . Influence Decreases 611 | . 323 272 . 16 Entered New Map 136 | . . 136 . . Time Decay 429 | . 303 126 . . Lost Part 46 | . 20 10 . 16 Squads Dispatched 4 | . 4 . . . Investigation 2 | . 2 . . . Extermination . | . . . . . Reinforcement 2 | . 2 . . . Assault . | . . . . . Garrison . | . . . . . Intercept . | . . . . . Searches Triggered . | . . . . . Construction Impeded . | . . . . . Haulers Reinforced . | . . . . . Active Scanning Responses . | . . . . . Cargo Convoy Interrupts . | . . . . . Stealth | -11 -10 -10 -10 -9 --------- Run | Yrd Mat Min Exi Min Distress Signals 1 | . 1 . . . Communications Jammed . | . . . . . Distress Signals . | . . . . . Times Spotted 48 | . 28 2 . 18 Peak Tracking Total 19 | . 4 2 . 19 Tactical Retreats 7 | . 6 . . 1 Traps | -11 -10 -10 -10 -9 ------- Run | Yrd Mat Min Exi Min Traps Triggered 2 | . 2 . . . Indirectly . | . . . . . Trap Hack Attempts . | . . . . . Triggered . | . . . . . Disarmed . | . . . . . Reprogrammed . | . . . . . Reused . | . . . . . Traps Extracted . | . . . . . Installed . | . . . . . Triggered . | . . . . . Machines | -11 -10 -10 -10 -9 ---------- Run | Yrd Mat Min Exi Min Machines Disabled 2 | . 2 . . . Max in Single Turn 1 | . 1 . . . Machines Repaired . | . . . . . Machines Dismantled . | . . . . . Machines Sabotaged . | . . . . . Overloaded Fab Kills . | . . . . . Hacking | -11 -10 -10 -10 -9 --------- Run | Yrd Mat Min Exi Min Machines Accessed 7 | . 3 . 4 . Terminals 2 | . 2 . . . Fabricators . | . . . . . Repair Stations 1 | . 1 . . . Recycling Units . | . . . . . Scanalyzers . | . . . . . Garrison Access . | . . . . . Total Hacks 30 | . 11 . 19 . Successful 25 | . 6 . 19 . Failed 5 | . 5 . . . Catastrophic 1 | . 1 . . . Database Lockouts . | . . . . . Manual 4 | . 2 . 2 . Terminals 9 | . 9 . . . Fabricators . | . . . . . Repair Stations 2 | . 2 . . . Recycling Units . | . . . . . Scanalyzers . | . . . . . Garrison Access . | . . . . . Terminal Hacks 21 | . 2 . 19 . Record 18 | . . . 18 . Prototype ID Bank 1 | . 1 . . . Branch Access Points 1 | . 1 . . . Proto ID Catalog 1 | . . . 1 . Fabricator Hacks . | . . . . . Repair Station Hacks 2 | . 2 . . . Scan Component 1 | . 1 . . . Repair 1 | . 1 . . . Recycling Unit Hacks . | . . . . . Scanalyzer . | . . . . . Garrison Access Hacks . | . . . . . Unauthorized Hacks 2 | . 2 . . . Terminals 2 | . 2 . . . Botnet 2 | . 2 . . . Fabricators . | . . . . . Repair Stations . | . . . . . Recycling Units . | . . . . . Scanalyzers . | . . . . . Garrison Access . | . . . . . Data Cores Recovered . | . . . . . Used . | . . . . . Hacking Detections 2 | . 2 . . . Full Trace Events 2 | . 2 . . . Feedback Events . | . . . . . Feedback Blocked . | . . . . . Robot Schematics Acquired . | . . . . . Robots Built . | . . . . . Authchips . | . . . . . Time . | . . . . . Total Robot Build Rating . | . . . . . Part Schematics Acquired . | . . . . . Parts Built . | . . . . . Authchips . | . . . . . Time . | . . . . . Total Part Build Rating . | . . . . . Parts Repaired 1 | . 1 . . . Time 26 | . 26 . . . Parts Recycled . | . . . . . Recycled Matter . | . . . . . Retrieved Matter . | . . . . . Retrieved Components . | . . . . . Parts Scanalyzed . | . . . . . Part Schematics Acquired . | . . . . . Parts Damaged . | . . . . . Bothacking | -11 -10 -10 -10 -9 ------------ Run | Yrd Mat Min Exi Min Used RIF Installer . | . . . . . Robots Hacked . | . . . . . Non-combat . | . . . . . Combat . | . . . . . Robot Hacks Applied . | . . . . . Relay Couplers Released . | . . . . . Fabnet Peak Effective % . | . . . . . Robots Rewired . | . . . . . Allies Hacked . | . . . . . Hacks Repelled . | . . . . . Allies | -11 -10 -10 -10 -9 -------- Run | Yrd Mat Min Exi Min Total Allies 1 | . . . . 1 Largest Group 1 | . . . . 1 Highest-Rated Group 31 | . . . . 31 Highest-Rated Ally 31 | . . . . 31 Total Orders . | . . . . . Ally Attacks 3 | . . . . 3 Total Damage 21 | . . . . 21 Kills 1 | . . . . 1 Allies Corrupted . | . . . . . Allies Melted . | . . . . . Intel | -11 -10 -10 -10 -9 ------- Run | Yrd Mat Min Exi Min Active Infowar (turns) . | . . . . . Robot Analysis Total . | . . . . . Derelict Logs Recovered 2 | . . 2 . . Drone Launches . | . . . . . Drone Recoveries . | . . . . . Exploration | -11 -10 -10 -10 -9 ------------- Run | Yrd Mat Min Exi Min Turns Passed 2772 | 76 1418 792 440 46 Spaces Moved 1197 | 43 408 453 275 18 Core 3 | 3 . . . . Treads 1192 | 40 408 453 275 16 Legs 2 | . . . . 2 Wheels . | . . . . . Hover . | . . . . . Flight . | . . . . . Fastest Speed 50 | 50 160 160 160 120 Average Speed 161 | 152 164 160 160 155 Slowest Speed 240 | 160 240 160 160 160 Overloaded Moves . | . . . . . Propulsion Burnouts . | . . . . . Robots Hopped . | . . . . . Potential Cave-ins . | . . . . . Cave-ins Triggered . | . . . . . Exploration Rate (%) 43 | 4 52 96 61 6 Regions Visited 4 Branch Regions 3 Pre-discovered Areas 2 | . . 2 . . Known Exits Taken 1 | . 1 . . . Unknown Exits Taken 3 | 1 . 1 1 . Scrap Searched 1 | . . 1 . . Spaces Dug . | . . . . . Terrain Destroyed 21 | . . . . 21 Melee . | . . . . . Projectile . | . . . . . AOE 21 | . . . . 21 Terrain Rammed . | . . . . . Walls Destroyed . | . . . . . Machines Disabled . | . . . . . Actions | -11 -10 -10 -10 -9 --------- Run | Yrd Mat Min Exi Min Total 1895 | 51 1030 508 275 31 Wait 584 | . 541 43 . . Move 1193 | 42 407 452 274 18 Hop . | . . . . . Pick Up 14 | 3 6 4 1 . Fast Attach 10 | 6 4 . . . Attach 8 | . 1 1 . 6 Detach . | . . . . . Swap 8 | . 6 1 . 1 Drop 7 | . 3 1 . 3 Fire 69 | . 61 6 . 2 Melee . | . . . . . Ram 1 | . . . . 1 Kick . | . . . . . Crush 1 | . 1 . . . Escape Stasis . | . . . . . Rewire . | . . . . . Trap . | . . . . . Miscellaneous . | . . . . . Route ------- -11/Scrapyard -10/Materials (discovered 3 exits: [*Mat] / *Min / *Sub) -10/Mines (discovered 4 exits: [*Mat x2] / *Exi / Sub) -10/Exiles (discovered 2 exits: [*Min x2]) -9/Mines History --------- Turn | Location | Event 9 | -11/Scrapyard | Discovered new exit (range 14) 77 | -11/Scrapyard | Entered Materials 142 | -10/Materials | Discovered new exit (range 7) 309 | -10/Materials | Build established: Mutant 700 | -10/Materials | Repaired Lgt. Treads 968 | -10/Materials | Identified exit to Mines 1058 | -10/Materials | Discovered new exit (range 7) 1495 | -10/Materials | Entered Mines 1507 | -10/Mines | Met a Derelict bent on vengeance 1638 | -10/Mines | Learned location of Storage (-8) 1640 | -10/Mines | Discovered new exit (range 15) 1824 | -10/Mines | Identified exit to Subcaves 1849 | -10/Mines | Discovered new exit (range 11) 1917 | -10/Mines | A weapon hastily lodged in a ceiling crevice suddenly fell to the ground 2280 | -10/Mines | Deemed a non-threat by the Exiles lab entrance 2280 | -10/Mines | Discovered new exit (range 5) 2287 | -10/Mines | Entered Exiles 2311 | -10/Exiles | Discovered new exit (range 15) 2331 | -10/Exiles | Met 8R-AWN 2358 | -10/Exiles | Met EX-HEX 2407 | -10/Exiles | Met EX-BIN 2425 | -10/Exiles | Aligned with FarCom system 2427 | -10/Exiles | Given EX-Vault access code 2467 | -10/Exiles | Opened EX-Vault 2479 | -10/Exiles | Found Potential Leg 2533 | -10/Exiles | Exiles lab attacked by MAIN.C 2704 | -10/Exiles | Discovered new exit (range 14) 2727 | -10/Exiles | Left Exiles lab with Potential Leg 2727 | -10/Exiles | Entered Mines 2728 | -9/Mines | Assembled infested the area 2728 | -9/Mines | Met a Derelict testing a Signal Generator 2755 | -9/Mines | Core integrity fell below 50% 2766 | -9/Mines | Core integrity fell below 20% 2773 | -9/Mines | Destroyed by as-26108 with Assembled Blade Last Messages --------------- assault force. 02735_ Signal Generator's internal power supply exhausted. 02748_ GM-J5T: "Oh no, it's like what happened to the Exiles when they were wandering homeless, only there's no Warlord to save us!" 02751_ as-44930 destroyed. 02752_ U0-J92(g) destroyed. 02753_ GM-J5T destroyed. 02758_ as-69035 destroyed. 02758_ as-67057 destroyed. 02758_ Hrd. Light Armor Plating destroyed. 02759_ Hvy. Assault Rifle destroyed. 02761_ Dropped Lgt. Treads. 02763_ Grenade Launcher destroyed. 02765_ Dropped Lrg. Storage Unit. 02765_ Lgt. Ion Engine destroyed. 02766_ Imp. Hover Unit destroyed. 02767_ Slammed into as-74400. 02769_ Imp. Hover Unit destroyed. 02769_ Lgt. Ion Engine destroyed. 02771_ as-30980 destroyed. Map ----- +----------------------------------------------------+ | ?????????????????????????????????????????????????? | | ?????????????????????????????????????????????????? | | ?????????????????????????????????????????????????? | | ?????????????????????????????????????????????????? | | ?????????????????????????????????????????????????? | | ?????????????????????????????????????????????????? | | ?????????????????????????????????????????????????? | | ?????????????????????????????????????????????????? | | ?????????????????????????????????????????????????? | | ?????????????????????????????????????????????????? | | ?????????????????????????????????????????????????? | | ?????????????????????????????????????????????????? | | ?????????????????????????????????????????????????? | | ?????????????????????????????????????????????????? | | ?????????????????????????????????????????????????? | | ?????????????????????????????????????????????????? | | ?????????????????????????????????????????????????? | | ?????????????????????????????????????????????????? | | ??????????????????????????????????? ???????????? | | ?????????????????????????????????? ???????????? | | ????????????????????????????????? ???????????? | | ???????????????????????????????? ???????????? | | ??????????????????????????????? ????????????? | | ?????????????????????????????? ???????????????? | | ??????????????????????####### #?????????????????? | | ?????????????????????## @ #??????????????????? | | ?????????????????????# aaaa ###????????????????? | | ?????????????????????# aaaaa=%[#????????????????? | | ????????????????????##!!== %a#????????????????? | | ???????????????????## =%a #????????????????? | | ????????????????#### ###### #????????????????? | | ???????????????## #????? ???????????????? | | ???????????????# ##?????? #?????????????? | | ??????????????# ##???????? ????????????? | | ?????????????# ##?????????? ???????????? | | ?????????????# ####??????????? ????????????? | | ?????????????## #???????????????? ????????????? | | ??????????????###????????????????? ???????????? | | ??????????????????????????????????? ??????????? | | ??????????????????????????????????? ??????????? | | ???????????????????????????????????? ????????????? | | ?????????????????????????????????????????????????? | | ?????????????????????????????????????????????????? | | | | | | | | | | | | | | | +----------------------------------------------------+ Best States ------------- Heat Dissipation 25 Energy Generation 10 Energy Capacity 250 Matter Stores 300 Matter Capacity 300 Sight Range 16 Terrain Scan Density 10 Armor Coverage 150 Evasion (%) 40 Recoil Reduction 2 Item Schematics ----------------- None Robot Schematics ------------------ None Fabricated ------------ Nothing Repaired ---------- Lgt. Treads | 69% | -10/Materials Alien Tech Used ----------------- None Achievements -------------- None Challenges ------------ None Game ------ Seed ArmoredThermalCompactor Manual? 0 Play Time 00:18:03 Cumulative 43.1 hours Start 2025.05.20 @ 21:43:38 End 2025.05.20 @ 22:04:05 Sessions 1 Manual Loads 0 Difficulty Rogue Special Mode None Game No. 60 Rogue 60 Adventurer 0 Explorer 0 Win Type - Total 1 Types 1/0/0/0/0/0/0/0/0/0 Lore% 26 Gallery% 32 Achievement% 35 Wizard Run 0 Options --------- Layout 0 ASCII 0 Keyboard 0 Movement Mouse Keybinds 0 Fullscreen 1 Font 18/SmallcapsGlow Map View 76x50 Zoom Use 0% Tactical HUD 1 Map Filters NONE Filters NONE Steam 1 RUN: aca257b7-db20-46df-b231-cf426312ccf3